bitfinex/quotes_SOLUSD_20251002
["timestamp","ask_amount","ask_price","bid_price","bid_amount"]
[1759391121933,81.52,223.55,223.54,17.90981761]
[1759391122451,81.52,223.55,223.54,13.43634531]
[1759391123952,80.8,223.55,223.54,13.43634531]
[1759391124158,80.8,223.55,223.54,17.90981761]
[1759391124547,0.68,223.56,223.54,17.90981761]
[1759391125161,0.68,223.56,223.54,4.4734723]
[1759391125361,0.68,223.56,223.55,13.43514185]
[1759391127258,10.80786072,223.56,223.52,20.8]
[1759391127556,31.9,223.55,223.52,34.23754899]
[1759391127763,31.22,223.55,223.52,20.8]
[1759391127933,0.68,223.54,223.53,13.43754899]
[1759391128134,3.03996666,223.54,223.53,13.43754899]
[1759391128335,3.03996666,223.54,223.48,4.47467334]
[1759391128336,87.13502708,223.54,223.48,4.47467334]
[1759391128590,0.68,223.53,223.48,17.91282425]
[1759391128863,0.68,223.52,223.48,17.91282425]
[1759391129162,0.68,223.51,223.48,4.47467334]
[1759391129361,0.68,223.51,223.49,13.43815091]
[1759391129550,0.68,223.53,223.49,13.43815091]
[1759391129738,83.15996666,223.54,223.49,13.43815091]
[1759391129739,0.68,223.52,223.49,17.91254139]
[1759391130147,0.68,223.52,223.49,4.47439048]
[1759391130351,0.68,223.52,223.5,13.43815091]
[1759391131569,0.68,223.52,223.48,4.47467334]
[1759391132264,80.8,223.54,223.5,20.8]
[1759391132566,80.8,223.54,223.53,20.8]
[1759391133442,0.68,223.57,223.53,20.8]
[1759391133670,3.29574649,223.56,223.54,4.4734723]
[1759391134050,0.68,223.56,223.54,4.4734723]
[1759391134238,3.97574649,223.56,223.54,4.4734723]
[1759391134462,0.68,223.56,223.54,4.4734723]
[1759391134656,3.97574649,223.56,223.54,4.4734723]
[1759391134856,3.29574649,223.57,223.54,4.4734723]
[1759391135053,0.68,223.56,223.54,4.4734723]
[1759391135355,3.29574649,223.57,223.54,4.4734723]
[1759391135547,3.97574649,223.57,223.54,4.4734723]
[1759391137952,3.97574649,223.57,223.55,20.8]
[1759391140281,3.97574649,223.57,223.55,25.2731995]
[1759391140672,3.97574649,223.57,223.55,20.8]
[1759391141082,3.29574649,223.57,223.55,20.8]
[1759391141371,80.8,223.58,223.57,25.27287203]
[1759391143776,80.8,223.58,223.57,25.96287203]
[1759391144656,10.04416344,223.59,223.57,25.96287203]
[1759391144879,10.04416344,223.59,223.58,31.89]
[1759391145673,10.04416344,223.59,223.58,36.36267197]
[1759391147756,10.04416344,223.59,223.58,57.16267197]
[1759391148180,10.04416344,223.59,223.58,67.34914718]
[1759391148587,10.04416344,223.59,223.58,81.47007861]
[1759391149866,0.68,223.66,223.61,20.8]
[1759391150189,3.29608733,223.66,223.62,31.2]
[1759391150484,3.97608733,223.66,223.62,31.89]
[1759391150786,0.68,223.65,223.62,31.2]
[1759391153408,3.29573373,223.66,223.65,20.8]
[1759391153586,9.84370874,223.69,223.67,20.8]
[1759391154092,10.56370874,223.69,223.68,20.8]
[1759391154408,13.85977737,223.69,223.68,20.8]
[1759391154782,10.56370874,223.69,223.68,20.8]
[1759391156278,9.84370874,223.69,223.68,20.8]
[1759391156878,9.84370874,223.69,223.68,25.27067238]
[1759391157166,10.56370874,223.69,223.68,20.8]
[1759391158185,12.07246029,223.69,223.64,9.84370874]
[1759391158395,1.50875155,223.65,223.62,31.18]
[1759391158585,0.72,223.65,223.62,31.18]
[1759391158896,0.72,223.65,223.64,20.8]
[1759391159399,3.29396429,223.67,223.64,20.8]
[1759391159587,4.01396429,223.68,223.65,20.8]
[1759391160385,9.84370874,223.69,223.64,56.451472]
[1759391160697,0.72,223.68,223.64,57.111472]
[1759391162195,9.84370874,223.69,223.65,10.87647521]
[1759391162374,9.84370874,223.69,223.68,20.8]
[1759391162776,9.84370874,223.69,223.68,51.98]
[1759391164207,9.84370874,223.69,223.68,20.8]
[1759391164208,10.56370874,223.69,223.68,20.8]
[1759391164407,9.84370874,223.69,223.68,20.8]
[1759391165702,9.84370874,223.69,223.68,51.98]
[1759391166188,0.72,223.72,223.68,51.98]
[1759391166591,0.72,223.72,223.68,56.45067238]
[1759391166815,3.29241203,223.73,223.68,57.11067238]
[1759391167107,4.01241203,223.73,223.68,57.11067238]
[1759391167483,0.72,223.73,223.68,57.11067238]
[1759391168095,80.8,223.74,223.69,0.66]
[1759391168384,80.8,223.74,223.7,31.18]
[1759391168727,81.52,223.74,223.7,31.18]
[1759391169214,0.92,223.76,223.73,20.8]
[1759391169587,0.72,223.75,223.73,20.8]
[1759391171187,0.72,223.75,223.68,11.17668097]
[1759391171188,83.02875155,223.74,223.64,0.66]
[1759391171390,1.50875155,223.69,223.65,31.18]
[1759391171588,0.72,223.68,223.65,31.18]
[1759391171892,0.72,223.7,223.68,20.8]
[1759391173421,3.29069007,223.72,223.68,20.8]
[1759391173592,0.72,223.71,223.68,20.8]
[1759391174989,0.72,223.73,223.68,57.11065324]
[1759391175487,0.72,223.72,223.68,51.98]
[1759391175683,3.29281389,223.73,223.68,52.64]
[1759391175905,0.72,223.73,223.68,52.64]
[1759391176096,4.01281551,223.73,223.68,52.64]
[1759391176283,86.77824286,223.74,223.68,52.64]
[1759391176486,80.8,223.73,223.68,52.64]
[1759391176687,81.52,223.73,223.68,52.64]
[1759391176898,0.72,223.72,223.68,51.98]
[1759391177111,0.72,223.71,223.68,51.98]
[1759391177507,0.72,223.7,223.68,51.98]
[1759391177693,0.72,223.69,223.58,11.18145374]
[1759391177888,1.50875155,223.65,223.64,13.4273246]
[1759391178094,2.22875155,223.65,223.62,20.8]
[1759391178490,0.72,223.64,223.62,20.8]
[1759391179700,1.50875155,223.65,223.62,20.8]
[1759391179900,2.22875155,223.65,223.62,20.8]
[1759391182801,1.50875155,223.64,223.62,20.8]
[1759391183014,2.19875155,223.64,223.62,20.8]
[1759391183207,2.19875155,223.64,223.59,36.31246931]
[1759391183208,2.19875155,223.63,223.58,13.43033016]
[1759391183412,1.50875155,223.59,223.52,0.68]
[1759391183600,2.19875155,223.58,223.53,42.05647521]
[1759391183805,0.69,223.58,223.53,35.65150698]
[1759391183997,1.50875155,223.58,223.56,20.8]
[1759391185925,1.50875155,223.59,223.56,20.8]
[1759391186233,2.18875155,223.59,223.56,20.8]
[1759391189227,2.18875155,223.58,223.56,20.8]
[1759391190410,1.50875155,223.58,223.56,20.8]
[1759391191412,2.18875155,223.58,223.56,20.8]
[1759391191612,1.50875155,223.58,223.56,20.8]
[1759391191923,2.18875155,223.58,223.56,20.8]
[1759391192127,1.50875155,223.58,223.56,20.8]
[1759391193229,2.18875155,223.57,223.53,31.18]
[1759391193418,2.18875155,223.56,223.53,31.18]
[1759391193731,2.18875155,223.56,223.55,20.8]
[1759391194514,6.66182365,223.56,223.49,0.71]
[1759391194729,6.66182365,223.56,223.43,11.18873146]
[1759391194730,1.50875155,223.53,223.45,15.35174932]
[1759391194921,2.18875155,223.52,223.49,20.8]
[1759391195619,2.18875155,223.52,223.46,31.89]
[1759391196125,2.18875155,223.52,223.49,20.8]
[1759391196306,0.68,223.52,223.49,20.8]
[1759391196503,1.50875155,223.53,223.49,20.8]
[1759391196722,2.18875155,223.53,223.5,20.8]
[1759391198334,3.03879631,223.53,223.5,20.8]
[1759391200432,3.03879631,223.53,223.49,20.8]
[1759391200628,3.03879631,223.53,223.5,20.8]
[1759391201355,3.03879631,223.53,223.47,25.27486926]
[1759391201637,3.03879631,223.52,223.49,20.8]
[1759391201811,0.68,223.51,223.49,20.8]
[1759391202214,0.68,223.51,223.47,4.47486926]
[1759391202415,83.15879631,223.52,223.48,0.71]
[1759391202618,80.8,223.52,223.48,0.71]
[1759391202943,80.8,223.52,223.48,5.18464487]
[1759391204133,80.8,223.52,223.49,0.71]
[1759391204336,80.8,223.52,223.5,0.71]
[1759391205442,80.8,223.52,223.49,4.47433524]
[1759391205443,80.8,223.52,223.48,0.71]
[1759391206442,80.8,223.52,223.47,4.47469071]
[1759391206743,0.68,223.51,223.46,56.45506549]
[1759391206954,0.68,223.5,223.46,56.45506549]
[1759391207234,87.6326914,223.52,223.46,56.45506549]
[1759391207438,81.48,223.52,223.47,0.71]
[1759391207620,80.8,223.51,223.46,56.45506549]
[1759391207827,80.8,223.51,223.48,0.71]
[1759391208818,80.8,223.51,223.46,63.16768459]
[1759391209034,80.8,223.51,223.49,0.71]
[1759391209227,81.48,223.51,223.47,4.47487358]
[1759391210645,0.68,223.5,223.46,51.98]
[1759391210951,80.8,223.51,223.47,0.71]
[1759391211131,81.48,223.51,223.46,56.45505398]
[1759391211339,81.48,223.51,223.46,57.16505398]
[1759391211534,81.48,223.51,223.46,25.98505398]
[1759391211739,81.48,223.51,223.47,31.2]
[1759391212120,81.48,223.51,223.47,35.67479848]
[1759391212928,0.68,223.5,223.47,35.67479848]
[1759391213128,80.8,223.51,223.47,4.47479848]
[1759391213327,81.48,223.51,223.47,35.67479848]
[1759391213530,80.8,223.5,223.47,35.67479848]
[1759391214246,80.8,223.5,223.47,4.47479848]
[1759391214435,80.8,223.5,223.48,31.2]
[1759391215046,80.8,223.5,223.48,35.67453667]
[1759391217652,81.46,223.5,223.48,31.2]
[1759391217847,81.46,223.5,223.48,35.67464024]
[1759391217848,80.8,223.5,223.48,35.67464024]
[1759391220154,80.8,223.5,223.48,36.37464024]
[1759391221049,80.8,223.5,223.48,35.67464024]
[1759391221959,0.66,223.49,223.48,31.2]
[1759391222836,80.8,223.5,223.48,35.67467334]
[1759391224530,81.46,223.5,223.48,35.67467334]
[1759391225544,80.8,223.5,223.48,31.2]
[1759391225768,0.66,223.49,223.48,31.2]
[1759391228462,80.8,223.48,223.44,48.91363636]
[1759391228665,0.66,223.47,223.44,48.91363636]
[1759391228852,0.66,223.46,223.44,48.91363636]
[1759391229768,81.46,223.48,223.44,48.91363636]
[1759391229947,80.8,223.48,223.44,48.91363636]
[1759391230265,0.66,223.47,223.44,53.38910018]
[1759391231174,0.66,223.46,223.44,17.71363636]
[1759391231335,0.66,223.45,223.44,17.71363636]
[1759391239080,3.01879631,223.45,223.44,17.71363636]
[1759391243387,0.66,223.45,223.44,17.71363636]
[1759391246083,3.01879631,223.45,223.44,17.71363636]
[1759391246388,0.66,223.45,223.44,17.71363636]
[1759391246693,3.01879631,223.45,223.44,17.71363636]
[1759391247455,0.66,223.45,223.44,17.71363636]
[1759391247865,2.35879631,223.46,223.44,17.71363636]
[1759391248066,3.04879631,223.46,223.44,17.71363636]
[1759391248368,0.69,223.46,223.44,17.71363636]
[1759391248983,2.35879631,223.48,223.44,22.86909232]
[1759391249290,3.04879631,223.48,223.44,18.39363636]
[1759391249484,6.35213844,223.47,223.44,17.71363636]
[1759391249688,3.04879631,223.47,223.44,17.71363636]
[1759391249862,0.69,223.46,223.44,17.71363636]
[1759391250388,0.69,223.45,223.44,17.71363636]
[1759391250562,0.69,223.46,223.44,17.71363636]
[1759391251175,6.83379786,223.47,223.44,17.71363636]
[1759391251382,3.99300632,223.46,223.44,17.71363636]
[1759391251567,0.69,223.46,223.44,17.71363636]
[1759391251771,0.69,223.45,223.44,17.71363636]
[1759391251984,2.35879631,223.46,223.44,17.71363636]
[1759391252177,3.04879631,223.46,223.44,22.18863791]
[1759391252364,0.69,223.46,223.44,22.18863791]
[1759391252779,2.35879631,223.47,223.44,22.18863791]
[1759391252980,3.99265958,223.46,223.44,22.18863791]
[1759391253174,3.04879631,223.46,223.44,22.18863791]
[1759391253791,0.69,223.46,223.44,22.18863791]
[1759391256666,2.64311945,223.47,223.44,22.18863791]
[1759391256873,3.33311945,223.47,223.44,22.18863791]
[1759391257100,0.69,223.46,223.44,22.18863791]
[1759391257287,3.04879631,223.46,223.44,22.18863791]
[1759391257597,3.30396214,223.45,223.44,22.18863791]
[1759391257788,3.04879631,223.46,223.44,22.18863791]
[1759391257994,2.35879631,223.47,223.44,22.18863791]
[1759391258300,3.30403839,223.46,223.44,22.18863791]
[1759391258597,2.20043081,223.47,223.44,22.18863791]
[1759391258786,3.30411296,223.46,223.44,22.18863791]
[1759391258986,2.20043081,223.47,223.44,22.18863791]
[1759391259187,3.30411296,223.46,223.44,22.18863791]
[1759391259493,2.20043081,223.47,223.44,22.18863791]
[1759391259803,3.3042845,223.46,223.44,22.86863791]
[1759391260001,1.79475395,223.47,223.44,22.86863791]
[1759391260174,3.30428515,223.46,223.44,22.18863791]
[1759391260376,2.48475395,223.47,223.44,22.18863791]
[1759391260596,3.99447279,223.46,223.44,22.18863791]
[1759391260802,3.99447279,223.45,223.44,22.18863791]
[1759391260986,4.8149036,223.45,223.44,22.18863791]
[1759391261186,5.5049036,223.45,223.44,22.18863791]
[1759391263193,3.99447279,223.45,223.44,22.18863791]
[1759391264088,9.98017771,223.45,223.44,17.71363636]
[1759391265509,8.4697469,223.45,223.44,17.71363636]
[1759391265710,9.98017771,223.45,223.44,17.71363636]
[1759391267596,13.2833783,223.45,223.44,17.71363636]
[1759391269185,11.77294749,223.45,223.44,17.71363636]
[1759391269395,13.2833783,223.45,223.44,17.71363636]
[1759391273389,13.56770144,223.45,223.44,17.71363636]
[1759391274610,12.05727063,223.45,223.44,17.71363636]
[1759391274816,13.56770144,223.45,223.44,17.71363636]
[1759391274998,12.87770144,223.45,223.44,17.71363636]
[1759391275319,13.55770144,223.45,223.44,17.71363636]
[1759391280405,12.87770144,223.45,223.44,17.71363636]
[1759391280599,13.55770144,223.45,223.44,17.71363636]
[1759391281503,12.04727063,223.45,223.44,17.71363636]
[1759391281705,13.55770144,223.45,223.44,17.71363636]
[1759391284823,44.73770144,223.45,223.44,17.71363636]
[1759391291733,13.55770144,223.45,223.44,17.71363636]
[1759391292236,44.73770144,223.45,223.44,17.71363636]
[1759391293331,44.72664803,223.45,223.44,17.71363636]
[1759391305046,39.57137392,223.45,223.44,18.37363636]
[1759391305550,39.57137392,223.45,223.44,17.71363636]
[1759391305748,44.04664803,223.45,223.44,17.71363636]
[1759391306618,37.45002806,223.45,223.44,17.71363636]
[1759391306824,44.0417538,223.45,223.44,17.71363636]
[1759391310353,42.53132299,223.45,223.44,17.71363636]
[1759391310658,44.0417538,223.45,223.44,17.71363636]
[1759391311237,42.53132299,223.45,223.44,17.71363636]
[1759391311552,44.0417538,223.45,223.44,17.71363636]
[1759391311752,42.53132299,223.45,223.44,17.71363636]
[1759391312063,44.0417538,223.45,223.44,17.71363636]
[1759391313552,44.7117538,223.45,223.44,17.71363636]
[1759391313932,44.0417538,223.45,223.44,17.71363636]
[1759391314125,44.7117538,223.45,223.44,17.71363636]
[1759391314351,44.0417538,223.45,223.44,17.71363636]
[1759391316834,42.53132299,223.45,223.44,17.71363636]
[1759391317136,44.0417538,223.45,223.44,17.71363636]
[1759391318348,45.56220763,223.45,223.44,17.71363636]
[1759391318539,44.89220763,223.45,223.44,17.71363636]
[1759391319146,45.56220763,223.45,223.44,17.71363636]
[1759391319349,48.53383468,223.45,223.44,17.71363636]
[1759391319947,46.17295004,223.45,223.44,17.71363636]
[1759391320165,48.53383468,223.45,223.44,17.71363636]
[1759391321767,46.17295004,223.45,223.44,17.71363636]
[1759391321936,48.53383468,223.45,223.44,17.71363636]
[1759391322138,48.51383468,223.45,223.44,17.71363636]
[1759391323361,46.15295004,223.45,223.44,17.71363636]
[1759391323540,48.51383468,223.45,223.44,17.71363636]
[1759391329350,45.48295004,223.45,223.44,17.71363636]
[1759391329551,48.51383468,223.45,223.44,17.71363636]
[1759391330067,48.51383468,223.45,223.44,15.47523975]
[1759391333379,41.92210894,223.45,223.44,15.47523975]
[1759391333566,48.52757038,223.45,223.44,15.47523975]
[1759391335379,0.28432314,223.42,223.4,0.69]
[1759391335583,105.73542947,223.41,223.4,0.69]
[1759391335781,103.37454483,223.41,223.4,0.69]
[1759391335988,105.73542947,223.41,223.4,0.69]
[1759391337379,110.21155042,223.41,223.38,13.44658344]
[1759391337584,8.96634608,223.4,223.39,0.69]
[1759391338089,6.60546144,223.4,223.39,0.69]
[1759391338393,8.96634608,223.4,223.39,0.69]
[1759391338563,65.32476025,223.39,223.38,13.44658344]
[1759391338767,0.28432314,223.38,223.34,0.69]
[1759391339086,74.29110633,223.37,223.35,0.69]
[1759391339266,6.60546144,223.36,223.35,0.69]
[1759391339985,6.60546144,223.36,223.35,14.13658344]
[1759391340358,6.60546144,223.36,223.32,4.57783178]
[1759391340562,6.60546144,223.35,223.34,34.24899468]
[1759391340866,6.60546144,223.35,223.34,34.93899468]
[1759391345166,6.60546144,223.35,223.32,0.79]
[1759391345494,4.47709134,223.36,223.33,14.13959763]
[1759391345495,3.29588234,223.34,223.33,14.13959763]
[1759391347278,6.59047687,223.34,223.33,13.44959763]
[1759391348112,87.39047687,223.34,223.33,13.44959763]
[1759391348289,87.39047687,223.34,223.32,20.9]
[1759391348474,3.29588234,223.33,223.32,34.35020063]
[1759391348980,3.29588234,223.33,223.32,35.04020063]
[1759391350301,3.29588234,223.33,223.32,34.35020063]
[1759391350497,3.29588234,223.33,223.32,35.04020063]
[1759391351488,3.29588234,223.33,223.32,34.35020063]
[1759391352286,31.16,223.35,223.32,34.35020063]
[1759391352594,3.29166815,223.34,223.32,34.35020063]
[1759391352889,31.88,223.35,223.32,34.35020063]
[1759391353073,3.29166686,223.34,223.32,13.55020063]
[1759391353281,36.3572788,223.35,223.32,13.55020063]
[1759391353490,3.29135362,223.34,223.32,13.55020063]
[1759391353680,38.71816344,223.35,223.32,13.55020063]
[1759391353882,3.29135297,223.34,223.32,13.55020063]
[1759391354183,38.71816344,223.35,223.32,13.55020063]
[1759391354374,3.29136501,223.34,223.32,13.55020063]
[1759391354574,38.71816344,223.35,223.32,13.55020063]
[1759391354900,3.29111483,223.34,223.32,13.55020063]
[1759391355101,38.71816344,223.35,223.32,13.55020063]
[1759391355309,2.64520778,223.33,223.32,0.1]
[1759391355476,40.38721496,223.33,223.32,0.1]
[1759391355676,41.10721496,223.33,223.32,0.1]
[1759391356300,9.94721496,223.33,223.32,0.1]
[1759391356487,41.10721496,223.33,223.32,0.1]
[1759391357390,45.58489373,223.33,223.32,0.1]
[1759391358383,14.42489373,223.33,223.32,0.1]
[1759391358590,45.58489373,223.33,223.32,0.1]
[1759391363297,45.57708363,223.33,223.32,0.1]
[1759391364197,189.35355884,223.33,223.32,0.1]
[1759391364395,191.71444348,223.33,223.32,0.1]
[1759391364918,193.50852748,223.33,223.32,1e-08]
[1759391365413,204.7027244,223.33,223.28,0.5]
[1759391365705,2.64520778,223.29,223.28,0.5]
[1759391366011,33.80520778,223.29,223.28,0.5]
[1759391366191,41.07940486,223.29,223.28,0.5]
[1759391366580,45.55788575,223.29,223.28,0.5]
[1759391368113,0.28432314,223.26,223.24,0.2]
[1759391368420,133.18432314,223.28,223.24,0.2]
[1759391368421,114.00520778,223.25,223.24,0.2]
[1759391368623,82.84520778,223.25,223.24,0.2]
[1759391368821,114.00520778,223.25,223.24,0.2]
[1759391371917,118.48449109,223.25,223.24,0.2]
[1759391372120,114.00520778,223.25,223.24,0.2]
[1759391372695,111.64432314,223.25,223.24,0.2]
[1759391373027,114.00520778,223.25,223.24,0.2]
[1759391373990,31.44432314,223.25,223.24,0.2]
[1759391374193,38.28449109,223.25,223.24,0.2]
[1759391374600,31.16,223.26,223.24,0.88]
[1759391374805,33.52088464,223.26,223.24,0.2]
[1759391375425,83.44520778,223.25,223.24,0.2]
[1759391376501,116.72360645,223.25,223.24,0.2]
[1759391377305,81.08432314,223.25,223.24,0.2]
[1759391377613,112.24432314,223.25,223.24,0.2]
[1759391380023,31.44432314,223.25,223.24,0.2]
[1759391380224,132.9,223.28,223.24,0.88]
[1759391380427,34.72428511,223.27,223.25,0.68]
[1759391380612,31.44432314,223.27,223.24,0.2]
[1759391380815,37.43659677,223.27,223.24,0.2]
[1759391381025,38.13659677,223.27,223.24,0.2]
[1759391381708,37.43659677,223.27,223.24,0.88]
[1759391381900,132.9,223.28,223.24,0.88]
[1759391381901,137.37869572,223.28,223.24,0.2]
[1759391382105,168.53869572,223.28,223.25,0.68]
[1759391383209,164.06,223.28,223.25,0.68]
[1759391383617,168.53868329,223.28,223.25,0.68]
[1759391384924,169.23868329,223.28,223.24,0.2]
[1759391385231,169.23868329,223.28,223.24,0.88]
[1759391385431,164.06,223.28,223.24,0.88]
[1759391385615,164.06,223.28,223.25,0.68]
[1759391386014,80.8,223.27,223.24,0.2]
[1759391386225,80.8,223.27,223.24,0.88]
[1759391386473,80.8,223.27,223.25,0.68]
[1759391386734,80.8,223.27,223.26,0.68]
[1759391386917,80.8,223.27,223.24,0.2]
[1759391387325,80.8,223.27,223.24,0.88]
[1759391388010,80.8,223.27,223.25,0.68]
[1759391388407,80.8,223.27,223.24,0.88]
[1759391389140,81.5,223.27,223.24,0.2]
[1759391389438,80.8,223.27,223.24,0.2]
[1759391389806,81.5,223.27,223.24,0.2]
[1759391390633,80.8,223.27,223.24,0.2]
[1759391390835,80.8,223.27,223.24,0.88]
[1759391391314,80.8,223.27,223.25,0.68]
[1759391391516,0.7,223.32,223.24,4.67946938]
[1759391391744,6.57679826,223.31,223.27,20.8]
[1759391391913,0.7,223.31,223.28,20.8]
[1759391392120,3.2886454,223.3,223.28,20.8]
[1759391392418,0.7,223.31,223.28,20.8]
[1759391392616,3.28922339,223.3,223.27,0.68]
[1759391392818,0.7,223.31,223.27,0.68]
[1759391393032,3.28915722,223.3,223.27,0.68]
[1759391393232,0.7,223.31,223.27,0.68]
[1759391393548,3.28966145,223.3,223.27,0.68]
[1759391393715,0.7,223.31,223.27,0.68]
[1759391393912,3.28878306,223.3,223.27,0.68]
[1759391394133,85.98728165,223.35,223.28,0.68]
[1759391394335,6.57695688,223.34,223.28,14.13080368]
[1759391394657,3.28895033,223.33,223.29,0.68]
[1759391394856,3.28895033,223.32,223.3,0.68]
[1759391395142,3.99909783,223.34,223.29,14.12959763]
[1759391395338,3.28903494,223.33,223.3,0.68]
[1759391395543,3.28903494,223.32,223.3,0.68]
[1759391395722,3.99909783,223.34,223.29,14.12959763]
[1759391396043,3.28935228,223.33,223.29,14.12959763]
[1759391396233,3.28935228,223.32,223.29,14.12959763]
[1759391396418,3.99909783,223.34,223.29,14.12959763]
[1759391396618,3.28891048,223.33,223.29,14.12959763]
[1759391396842,3.28891048,223.32,223.29,14.12959763]
[1759391397020,3.99909783,223.34,223.29,14.12959763]
[1759391397340,3.99936767,223.33,223.29,14.12959763]
[1759391397533,3.28909783,223.34,223.3,0.68]
[1759391397534,3.28936767,223.32,223.3,0.68]
[1759391397843,3.28909783,223.34,223.3,0.68]
[1759391398017,3.28975216,223.33,223.3,0.68]
[1759391398218,3.99909783,223.34,223.3,0.68]
[1759391398219,3.28975216,223.32,223.3,0.68]
[1759391398539,3.99909783,223.34,223.3,0.68]
[1759391398726,3.28970456,223.33,223.3,0.68]
[1759391398935,3.28970456,223.32,223.3,0.68]
[1759391399127,3.99909783,223.34,223.3,0.68]
[1759391399310,3.28970456,223.33,223.3,0.68]
[1759391399513,3.28970456,223.32,223.3,0.68]
[1759391399740,0.71,223.34,223.3,0.68]
[1759391399944,3.29003339,223.33,223.3,0.68]
[1759391400148,3.29003339,223.32,223.3,0.68]
[1759391400325,0.71,223.34,223.3,0.68]
[1759391400326,3.29044751,223.33,223.3,0.68]
[1759391400524,3.29031779,223.32,223.3,0.68]
[1759391400724,80.8,223.32,223.29,14.12959763]
[1759391400941,80.8,223.32,223.29,4.47845068]
[1759391401165,80.8,223.32,223.29,5.15845068]
[1759391401487,80.8,223.32,223.29,18.60804831]
[1759391401619,80.8,223.32,223.31,20.8]
[1759391402728,84.08875654,223.32,223.31,20.8]
[1759391402929,80.8,223.32,223.31,20.8]
[1759391407153,39.9338542,223.32,223.24,0.88]
[1759391407343,3.28551294,223.31,223.24,0.2]
[1759391407545,3.99494828,223.3,223.26,13.45140679]
[1759391407789,5.79220907,223.29,223.26,13.45140679]
[1759391407947,5.79220907,223.29,223.24,21.0]
[1759391407948,35.13425954,223.28,223.24,0.2]
[1759391408253,3.28425954,223.27,223.24,0.2]
[1759391408459,31.14,223.26,223.24,0.2]
[1759391408772,31.85,223.26,223.24,0.2]
[1759391410255,36.32910674,223.26,223.24,0.2]
[1759391412079,0.28432314,223.25,223.24,0.2]
[1759391412269,0.99432314,223.25,223.24,0.2]
[1759391413970,31.85,223.25,223.24,0.2]
[1759391416776,1.51334357,223.26,223.24,0.2]
[1759391416952,32.67334357,223.26,223.24,0.2]
[1759391417153,0.71,223.25,223.24,0.2]
[1759391417554,33.38334357,223.26,223.24,0.2]
[1759391418164,0.71,223.25,223.24,0.2]
[1759391418778,32.67334357,223.26,223.24,0.2]
[1759391418981,31.16,223.26,223.24,0.2]
[1759391419190,31.87,223.26,223.24,0.2]
[1759391419876,2.22334357,223.26,223.24,0.2]
[1759391420184,37.86246237,223.26,223.24,0.2]
[1759391421083,1.51334357,223.25,223.24,0.2]
[1759391421686,2.22334357,223.25,223.24,0.2]
[1759391421891,9.99048782,223.25,223.24,0.2]
[1759391422272,10.27481096,223.25,223.24,0.2]
[1759391422482,10.27481096,223.25,223.21,0.2]
[1759391422483,10.87647521,223.23,223.21,0.2]
[1759391422671,81.08432314,223.24,223.21,0.2]
[1759391422672,50.12510972,223.22,223.21,0.2]
[1759391422869,50.78510972,223.22,223.21,0.2]
[1759391423092,51.06943286,223.22,223.21,0.2]
[1759391424689,55.54931817,223.22,223.21,0.2]
[1759391427368,62.33209366,223.2,223.13,25.98168402]
[1759391427578,1.51334357,223.17,223.14,0.7]
[1759391427763,31.16,223.16,223.14,0.7]
[1759391427963,31.16,223.16,223.13,20.8]
[1759391428168,32.67334357,223.16,223.14,20.8]
[1759391429004,31.16,223.16,223.14,20.8]
[1759391429177,31.16,223.16,223.15,20.8]
[1759391429790,33.64766671,223.16,223.13,20.8]
[1759391430093,1.51334357,223.15,223.13,20.8]
[1759391430275,93.49209366,223.14,223.12,20.8]
[1759391430482,31.16,223.13,223.12,21.5]
[1759391430786,93.49209366,223.14,223.12,21.5]
[1759391430996,93.49209366,223.14,223.13,20.8]
[1759391431296,93.49209366,223.14,223.12,0.7]
[1759391432173,93.49209366,223.14,223.13,0.7]
[1759391433398,31.16,223.14,223.13,0.7]